bitfinex/quotes_SOLUSD_20241007
["timestamp","ask_amount","ask_price","bid_price","bid_amount"]
[1728331143151,6.7977,147.11,147.08,12.43598993]
[1728331143355,16.2041,147.15,147.09,12.43598993]
[1728331143560,6.7967,147.13,147.1,12.43598993]
[1728331143752,6.7965,147.14,147.11,13.79541563]
[1728331143959,6.7967,147.13,147.1,13.79537069]
[1728331144963,6.7979,147.11,147.08,29.43308993]
[1728331146253,6.7979,147.11,147.08,12.43598993]
[1728331147470,6.7979,147.11,147.07,319.23528993]
[1728331148047,6.7979,147.11,147.08,12.43598993]
[1728331148472,23.776884,147.11,147.07,300.0]
[1728331148679,6.799,147.08,147.07,300.0]
[1728331149653,6.7986,147.09,147.07,300.0]
[1728331150356,6.799,147.08,147.07,300.0]
[1728331151575,23.776884,147.11,147.07,300.0]
[1728331151753,6.2659,147.12,147.09,12.43598993]
[1728331151956,16.2041,147.15,147.11,12.43598993]
[1728331152267,16.2041,147.15,147.13,12.43598993]
[1728331152268,6.7957,147.15,147.13,12.43598993]
[1728331152954,6.7954,147.16,147.13,12.43598993]
[1728331153176,6.795,147.17,147.13,13.79514527]
[1728331153370,6.7953,147.16,147.13,13.79514527]
[1728331154898,15.336,147.19,147.13,8.15575534]
[1728331155187,6.7949,147.17,147.13,1.35915534]
[1728331155564,6.7947,147.18,147.13,6.7963]
[1728331155764,6.7949,147.17,147.13,6.7963]
[1728331155960,15.336,147.19,147.12,23.7893]
[1728331156193,6.7953,147.16,147.12,16.9922]
[1728331156701,6.7971,147.13,147.09,16.9955]
[1728331157182,6.7971,147.13,147.09,23.794]
[1728331158271,6.7971,147.13,147.09,16.9955]
[1728331159185,6.7959,147.15,147.1,1.35946613]
[1728331159392,23.776884,147.17,147.09,36.41794581]
[1728331159572,6.797,147.13,147.09,23.794]
[1728331159774,6.797,147.13,147.09,16.9955]
[1728331160564,6.7974,147.12,147.08,6.7988]
[1728331160786,6.7977,147.11,147.07,326.22184581]
[1728331162000,6.6564,147.15,147.07,300.0]
[1728331162291,6.7987,147.09,147.07,300.0]
[1728331162777,39.329784,147.13,147.07,300.0]
[1728331162979,6.7984,147.1,147.07,300.0]
[1728331164068,6.7985,147.09,147.07,300.0]
[1728331167003,39.329784,147.13,147.07,300.0]
[1728331167299,6.7982,147.1,147.07,300.0]
[1728331167800,6.7987,147.09,147.07,300.0]
[1728331169411,6.7977,147.11,147.07,306.7994]
[1728331169610,6.7977,147.11,147.08,1.35965744]
[1728331170192,39.329784,147.13,147.07,300.0]
[1728331170504,6.7983,147.1,147.08,1.35979988]
[1728331170691,6.7977,147.11,147.08,1.35979988]
[1728331171095,6.7964,147.14,147.08,18.35649988]
[1728331171295,6.7968,147.13,147.09,6.7983]
[1728331171684,6.7965,147.14,147.1,8.15748535]
[1728331171884,15.0941,147.17,147.07,300.0]
[1728331172087,6.7979,147.11,147.07,306.7991]
[1728331172887,23.776884,147.14,147.07,300.0]
[1728331173098,6.7983,147.1,147.07,300.0]
[1728331173413,6.7976,147.11,147.07,306.7993]
[1728331173915,6.7976,147.11,147.08,1.35966061]
[1728331174084,6.7976,147.11,147.07,306.7993]
[1728331174284,6.7972,147.12,147.08,6.7989]
[1728331174505,23.776884,147.14,147.07,316.9985]
[1728331174811,6.7979,147.11,147.07,316.9985]
[1728331175301,6.7979,147.11,147.07,323.7979]
[1728331175610,6.7981,147.1,147.07,316.9985]
[1728331176108,6.7977,147.11,147.08,1.35968419]
[1728331176303,6.7977,147.11,147.07,323.7979]
[1728331176488,6.7977,147.11,147.07,336.23862596]
[1728331177306,23.776884,147.14,147.08,12.44072596]
[1728331177489,6.7971,147.13,147.09,6.7985]
[1728331177684,6.7971,147.13,147.09,19.23922596]
[1728331178017,15.0941,147.17,147.12,12.44072596]
[1728331178381,6.7954,147.16,147.12,19.23782596]
[1728331178578,6.7954,147.16,147.12,20.59709878]
[1728331178994,6.7954,147.16,147.13,12.44072596]
[1728331179804,6.7949,147.17,147.13,19.23732596]
[1728331180305,30.60588244,147.19,147.1,21.9098]
[1728331180493,30.60588244,147.19,147.1,34.35052596]
[1728331181304,23.776884,147.18,147.1,27.55272596]
[1728331181609,6.7959,147.15,147.12,12.44072596]
[1728331181806,15.9495,147.2,147.14,19.23662596]
[1728331182011,6.7941,147.19,147.15,20.59537885]
[1728331182182,6.7941,147.19,147.16,12.44072596]
[1728331182610,6.7944,147.18,147.16,12.44072596]
[1728331182812,6.7931,147.21,147.17,20.59406663]
[1728331183106,6.7931,147.21,147.18,12.44072596]
[1728331183319,22.9285,147.23,147.18,12.44072596]
[1728331183320,6.7929,147.22,147.18,12.44072596]
[1728331183702,22.9285,147.23,147.18,12.44072596]
[1728331184011,6.7926,147.22,147.19,12.44072596]
[1728331184387,6.793,147.21,147.17,8.15307996]
[1728331184704,6.7926,147.22,147.18,6.7943]
[1728331184907,6.7932,147.21,147.17,6.7946]
[1728331185098,6.7936,147.2,147.16,23.783]
[1728331187513,13.32297939,147.26,147.13,59.90029033]
[1728331187514,6.7919,147.24,147.2,6.7933]
[1728331187687,6.2457,147.26,147.19,1.35847704]
[1728331187887,15.6389,147.27,147.2,16.9829]
[1728331188132,6.7914,147.25,147.21,8.1509764]
[1728331188708,6.7908,147.26,147.21,8.1509764]
[1728331189007,6.7912,147.25,147.21,8.1509764]
[1728331189413,15.6389,147.27,147.21,1.3583764]
[1728331189713,6.1769,147.3,147.22,16.981]
[1728331190020,6.7912,147.25,147.22,16.981]
[1728331190199,6.7912,147.25,147.19,36.39449033]
[1728331190517,6.7921,147.23,147.19,23.7779]
[1728331190701,6.7926,147.22,147.19,16.984]
[1728331191416,6.793,147.22,147.17,6.7944]
[1728331191589,23.776884,147.26,147.16,32.1367]
[1728331191920,6.7927,147.22,147.18,6.7942]
[1728331192243,6.7922,147.23,147.19,6.7939]
[1728331192898,6.7922,147.23,147.18,23.7798]
[1728331193105,23.776884,147.24,147.18,23.7798]
[1728331193310,6.7926,147.22,147.18,23.7798]
[1728331193622,6.7931,147.21,147.18,16.9856]
[1728331194294,23.776884,147.25,147.18,16.9856]
[1728331194589,23.776884,147.25,147.16,15.1488]
[1728331194794,6.794,147.19,147.15,23.7845]
[1728331194998,6.7938,147.2,147.16,6.7952]
[1728331195301,32.2415,147.24,147.13,13.3045]
[1728331195302,6.7947,147.18,147.13,13.3045]
[1728331195505,23.776884,147.21,147.13,6.7962]
[1728331195821,6.7945,147.18,147.12,32.7495]
[1728331196122,6.1265,147.23,147.14,36.40049033]
[1728331196327,6.1265,147.23,147.16,19.41049033]
[1728331196499,6.7927,147.22,147.18,6.7942]
[1728331196697,6.7927,147.22,147.19,1.35863295]
[1728331196921,6.2499,147.27,147.19,1.35863295]
[1728331197094,6.7917,147.24,147.19,6.7935]
[1728331197305,6.7917,147.24,147.2,18.34149723]
[1728331197810,6.7917,147.24,147.2,25.13489723]
[1728331198133,6.7916,147.24,147.2,25.13459723]
[1728331198298,6.2499,147.27,147.2,18.34149723]
[1728331198498,6.7913,147.25,147.21,6.7928]
[1728331198711,6.7913,147.25,147.22,1.35836058]
[1728331199206,6.1395,147.3,147.23,8.14999587]
[1728331199416,6.79,147.28,147.24,23.7698]
[1728331199611,6.7888,147.31,147.26,6.7906]
[1728331199805,6.7888,147.31,147.24,36.38879033]
[1728331199806,16.2797,147.32,147.24,36.38879033]
[1728331200126,6.7889,147.3,147.24,36.38879033]
[1728331200332,16.2797,147.32,147.26,6.7906]
[1728331200527,6.7889,147.3,147.26,6.7906]
[1728331200826,6.7889,147.3,147.25,6.791]
[1728331201500,16.2797,147.32,147.24,36.38879033]
[1728331201700,6.788,147.32,147.24,36.38879033]
[1728331201912,6.788,147.32,147.27,6.7901]
[1728331202125,6.7875,147.33,147.26,36.38659033]
[1728331202340,6.7883,147.32,147.27,6.7898]
[1728331202939,16.967,147.35,147.24,26.06979033]
[1728331203103,6.7896,147.29,147.24,6.6593]
[1728331203431,6.7893,147.29,147.26,0.5889]
[1728331203636,6.7899,147.28,147.26,0.5889]
[1728331204013,6.7902,147.27,147.26,0.5889]
[1728331204706,6.7883,147.32,147.27,6.7901]
[1728331205025,0.1,147.39,147.28,20.76821041]
[1728331205339,6.7865,147.36,147.32,6.7878]
[1728331205643,6.7865,147.36,147.31,6.7883]
[1728331205824,0.1,147.39,147.34,25.92539033]
[1728331206030,0.1,147.39,147.36,36.37499033]
[1728331206213,0.1,147.39,147.36,43.16099033]
[1728331206409,6.3839,147.41,147.37,1.35692543]
[1728331206735,6.3839,147.41,147.36,16.9645]
[1728331207045,72.1341,147.47,147.34,13.3018]
[1728331207046,16.9555,147.45,147.34,13.3018]
[1728331207229,6.7847,147.39,147.34,13.3018]
[1728331207437,16.9555,147.45,147.35,1.3570233]
[1728331207743,6.7829,147.43,147.36,30.97361072]
[1728331208032,7.6241616,147.42,147.37,16.9632]
[1728331208330,0.8408616,147.42,147.36,6.786]
[1728331208525,0.8408616,147.42,147.35,6.7865]
[1728331208724,6.7848,147.39,147.34,23.7539]
[1728331210029,6.7843,147.4,147.35,8.14354104]
[1728331210221,23.776884,147.41,147.36,6.7857]
[1728331210428,6.7849,147.39,147.34,23.7536]
[1728331210617,23.776884,147.41,147.33,30.97361072]
[1728331210830,6.7856,147.37,147.33,30.97361072]
[1728331211342,6.7856,147.37,147.33,37.76101072]
[1728331211943,6.7856,147.37,147.32,6.7878]
[1728331212230,6.7862,147.36,147.31,23.7588]
[1728331212611,46.030184,147.39,147.29,6.7889]
[1728331213029,6.7879,147.33,147.28,16.9743]
[1728331213235,6.7881,147.32,147.28,16.9743]
[1728331213422,6.7875,147.33,147.28,16.9743]
[1728331214031,23.776884,147.37,147.28,16.9743]
[1728331214236,23.776884,147.37,147.29,1.3575737]
[1728331214444,6.7862,147.36,147.32,6.7875]
[1728331214742,6.7862,147.36,147.31,8.14570778]
[1728331215537,6.7862,147.36,147.31,8.14560778]
[1728331215843,23.776884,147.38,147.31,1.35740778]
[1728331216030,23.776884,147.38,147.32,6.7876]
[1728331216222,6.7865,147.35,147.3,47.94511072]
[1728331217018,6.7865,147.35,147.31,1.35738931]
[1728331217639,6.786,147.37,147.31,1.35738931]
[1728331217821,23.776884,147.38,147.33,6.7871]
[1728331217822,6.7852,147.38,147.33,6.7871]
[1728331218447,6.7858,147.37,147.33,6.7871]
[1728331218819,6.7852,147.38,147.34,1.35718935]
[1728331219043,6.7852,147.38,147.34,8.14408935]
[1728331219928,6.7852,147.38,147.34,1.35718935]
[1728331220130,6.7852,147.38,147.33,8.14447029]
[1728331220439,23.776884,147.38,147.32,16.9693]
[1728331220743,23.776884,147.38,147.3,30.97361072]
[1728331220744,6.7865,147.35,147.31,6.7882]
[1728331221147,23.776884,147.38,147.29,16.9726]
[1728331221327,6.7875,147.33,147.29,16.9726]
[1728331221637,22.2533,147.39,147.26,6.2442]
[1728331221638,6.7887,147.31,147.26,23.2203]
[1728331222059,6.7887,147.31,147.27,6.7902]
[1728331222436,6.788,147.32,147.28,1.35776254]
[1728331222636,23.776884,147.34,147.26,16.9761]
[1728331222828,23.776884,147.34,147.27,0.2017]
[1728331223229,6.7897,147.28,147.27,0.2017]
[1728331224351,30.566584,147.28,147.27,0.2017]
[1728331225132,30.566584,147.28,147.27,0.5889]
[1728331226646,6.7897,147.28,147.27,0.5889]
[1728331226952,6.7894,147.29,147.27,0.5889]
[1728331227363,6.7897,147.28,147.27,0.5889]
[1728331228463,6.7887,147.31,147.27,0.5889]
[1728331228757,15.1827,147.32,147.27,0.5889]
[1728331228931,6.7889,147.3,147.27,0.5889]
[1728331229558,6.6362,147.34,147.27,0.5889]
[1728331229559,6.6362,147.34,147.28,1.35793077]
[1728331229773,6.6362,147.34,147.27,1.94683077]
[1728331229943,6.789,147.3,147.27,1.94683077]
[1728331230367,6.6362,147.34,147.27,8.73693077]
[1728331230558,6.7888,147.3,147.27,0.5889]
[1728331230873,6.7885,147.31,147.27,1.94672947]
[1728331231251,6.7885,147.31,147.27,8.73672947]
[1728331232267,6.7885,147.31,147.27,1.94672947]
[1728331232762,6.7885,147.31,147.27,0.5889]
[1728331232969,6.789,147.3,147.27,0.5889]
[1728331233266,6.789,147.3,147.27,1.94673648]
[1728331233950,6.789,147.3,147.27,0.5889]
[1728331234143,6.7897,147.28,147.27,0.5889]
[1728331236276,6.7892,147.3,147.27,0.5889]
[1728331236451,6.7893,147.29,147.27,0.5889]
[1728331238480,6.7897,147.28,147.27,0.5889]
[1728331244670,30.566584,147.28,147.27,0.5889]
[1728331245267,6.7897,147.28,147.27,0.5889]
[1728331245956,30.566584,147.28,147.27,0.5889]
[1728331248213,36.697584,147.28,147.27,0.5889]
[1728331248507,36.697584,147.28,147.27,0.0001]
[1728331249578,37.87848264,147.28,147.27,0.0001]
[1728331250454,51.08878264,147.28,147.16,16.9873]
[1728331250753,6.7939,147.19,147.14,22.5532]
[1728331250958,6.7939,147.19,147.15,6.7957]
[1728331251266,6.7939,147.19,147.14,22.5534]
[1728331251465,6.7939,147.19,147.14,15.7573]
[1728331251673,15.3765,147.22,147.14,15.7573]
[1728331251988,6.7939,147.19,147.15,6.7956]
[1728331252967,6.7939,147.19,147.15,26.18221256]
[1728331253178,23.776884,147.21,147.15,36.37561256]
[1728331253392,6.794,147.19,147.15,43.17131256]
[1728331254094,6.794,147.19,147.15,23.7847]
[1728331255073,6.7957,147.16,147.12,16.9922]
[1728331255986,6.7957,147.16,147.12,23.7892]
[1728331257597,6.7949,147.17,147.13,8.15565331]
[1728331257887,6.7949,147.17,147.12,16.9922]
[1728331258203,6.7941,147.19,147.15,6.7956]
[1728331258495,6.7941,147.19,147.15,1.35893887]
[1728331258681,6.7941,147.19,147.15,8.15463887]
[1728331259490,6.7941,147.19,147.15,27.54125143]
[1728331260502,15.3765,147.22,147.17,19.38661256]
[1728331260686,6.7921,147.23,147.19,6.7938]
[1728331260884,6.7921,147.23,147.19,16.9847]
[1728331261084,6.2506,147.25,147.18,1.35865086]
[1728331261310,6.793,147.21,147.17,26.18131256]
[1728331261679,6.794,147.19,147.15,39.38661256]
[1728331262006,6.7939,147.19,147.15,6.7954]
[1728331262378,23.776884,147.23,147.13,36.37741256]
[1728331262579,6.7944,147.18,147.14,6.7961]
[1728331264112,6.7935,147.2,147.16,6.7952]
[1728331264295,6.7935,147.2,147.17,1.35877551]
[1728331265402,6.7935,147.2,147.16,6.7952]
[1728331265799,6.7935,147.2,147.17,1.35881284]
[1728331266707,6.7928,147.22,147.17,20.7454254]
[1728331267029,6.7928,147.22,147.18,6.7942]
[1728331267395,6.7937,147.2,147.16,6.7952]
[1728331267592,6.7939,147.19,147.15,6.7956]
[1728331268087,6.7936,147.2,147.16,1.35885152]
[1728331268288,6.7936,147.2,147.16,8.15405152]
[1728331269319,6.7931,147.21,147.17,6.7947]
[1728331269498,6.7926,147.22,147.18,8.15266546]
[1728331270606,23.776884,147.24,147.16,16.988]
[1728331270913,6.7931,147.21,147.17,6.7947]
[1728331271298,6.7931,147.21,147.18,1.35868169]
[1728331271615,6.7931,147.21,147.17,6.7947]
[1728331272607,6.7931,147.21,147.18,1.35867422]
[1728331274893,6.7931,147.21,147.17,6.7947]
[1728331275324,23.776884,147.24,147.18,18.34416376]
[1728331275644,6.2506,147.25,147.21,19.38661256]
[1728331275798,6.2506,147.25,147.22,8.15059061]
[1728331277703,13.0422,147.25,147.21,6.7929]
[1728331278098,22.4905,147.26,147.22,1.35834112]
[1728331278324,6.5044,147.29,147.24,6.7913]
[1728331278521,6.5044,147.29,147.21,19.38661256]
[1728331278712,6.7919,147.24,147.2,6.7934]
[1728331279027,6.7921,147.23,147.19,43.16451256]
[1728331279215,16.9748,147.28,147.19,16.9841]
[1728331279417,6.7921,147.23,147.19,23.7778]
[1728331280011,6.7933,147.21,147.17,6.7947]
[1728331281295,23.776884,147.25,147.16,16.9873]
[1728331281505,6.7926,147.22,147.18,6.7943]
[1728331281723,6.7926,147.22,147.19,1.35857478]
[1728331281923,6.7926,147.22,147.18,6.7943]
[1728331282121,6.7926,147.22,147.19,1.35858481]
[1728331283324,30.568284,147.25,147.19,20.74519737]
[1728331283627,30.568284,147.25,147.21,6.7929]
[1728331283840,30.568284,147.25,147.21,8.15130231]
[1728331284327,23.776884,147.25,147.21,1.35840231]
[1728331284512,6.7916,147.24,147.21,1.35840231]
[1728331285701,6.7912,147.25,147.21,8.15110231]
[1728331285930,23.776884,147.26,147.21,20.74501487]
[1728331286229,6.7912,147.25,147.21,27.53781487]
[1728331286718,6.7908,147.26,147.22,6.7925]
[1728331286923,22.0899,147.27,147.23,8.15018734]
[1728331289130,6.7907,147.26,147.23,6.792]
[1728331289427,6.7907,147.26,147.22,18.33933039]
[1728331289599,6.7907,147.26,147.22,25.13163039]
[1728331290034,22.09,147.27,147.23,6.792]
[1728331290210,22.09,147.27,147.24,1.35814431]
[1728331290405,6.7899,147.28,147.24,8.14964431]
[1728331290606,6.5044,147.29,147.24,1.35814431]
[1728331290902,6.79,147.28,147.24,23.7703]
[1728331291904,6.7903,147.27,147.23,26.17851256]
[1728331292231,6.7903,147.27,147.23,6.7919]
[1728331294099,6.7903,147.27,147.24,1.35814379]
[1728331294298,6.5044,147.29,147.24,1.35814379]
[1728331295225,16.517,147.31,147.25,19.38661256]
[1728331295402,16.517,147.31,147.26,1.35785894]
[1728331295602,6.7888,147.3,147.26,8.14845894]
[1728331296032,6.7877,147.33,147.29,6.7892]
[1728331296330,6.788,147.32,147.29,1.35763681]
[1728331297197,6.7876,147.33,147.29,8.14693681]
[1728331298238,6.7879,147.32,147.29,1.35763681]
[1728331298619,6.7885,147.31,147.27,16.9753]
[1728331298838,6.7885,147.31,147.27,23.7654]
[1728331299208,6.789,147.3,147.26,6.7905]
[1728331299716,23.776884,147.35,147.24,16.9784]
[1728331299937,6.7901,147.28,147.24,16.9784]
[1728331300305,6.7903,147.27,147.24,16.9784]
[1728331300761,6.7908,147.26,147.22,6.7925]
[1728331300934,32.8826,147.31,147.21,16.9819]
[1728331300935,23.776884,147.3,147.21,16.9819]
[1728331301239,23.776884,147.28,147.21,23.7748]
[1728331301408,6.7908,147.26,147.21,16.9819]
[1728331301603,6.7908,147.26,147.22,8.15061508]
[1728331302020,6.7908,147.26,147.22,6.7924]
[1728331302534,6.7908,147.26,147.23,1.35820971]
[1728331303437,6.7908,147.26,147.22,6.7924]
[1728331303615,6.7908,147.26,147.23,1.35820096]
[1728331305839,6.7908,147.26,147.22,6.7924]
[1728331308218,6.7914,147.25,147.21,23.7747]
[1728331308420,23.776884,147.28,147.21,16.9819]
[1728331308622,6.7913,147.25,147.21,23.7748]
[1728331309035,6.7908,147.26,147.22,6.7925]
[1728331309424,6.7908,147.26,147.22,8.15076942]
[1728331310536,6.7905,147.27,147.23,6.7919]
[1728331311045,6.7912,147.25,147.21,23.7745]
[1728331312122,6.7916,147.24,147.21,16.9819]
[1728331313249,6.7926,147.22,147.18,6.7943]
[1728331313560,6.7935,147.2,147.17,16.9868]
[1728331313925,6.7932,147.21,147.17,23.7813]
[1728331314440,23.776884,147.24,147.17,16.9868]
[1728331314622,32.8521,147.25,147.17,16.9868]
[1728331314820,6.793,147.21,147.17,23.7815]
[1728331315928,6.7944,147.18,147.14,43.17231256]
[1728331316253,6.7943,147.19,147.14,43.17231256]
[1728331316635,6.7944,147.18,147.14,43.17231256]
[1728331316948,23.776884,147.21,147.13,6.7963]
[1728331316949,6.7949,147.17,147.13,6.7963]
[1728331317664,6.7949,147.17,147.12,6.797]
[1728331317948,6.7949,147.17,147.13,6.7965]
[1728331320329,6.7949,147.17,147.11,16.9935]
[1728331320330,6.7956,147.16,147.11,23.7908]
[1728331320730,6.7956,147.16,147.11,16.9935]
[1728331320957,6.7956,147.16,147.12,6.7971]
[1728331321654,23.776884,147.18,147.11,16.9935]
[1728331321862,6.7949,147.17,147.13,6.7966]
[1728331322237,15.3739,147.19,147.14,19.38661256]
[1728331322546,15.3739,147.19,147.09,7.08332934]
[1728331322547,15.3739,147.19,147.16,26.18191256]
[1728331323133,15.3739,147.19,147.16,27.54074516]
[1728331324158,15.3739,147.19,147.16,20.74544516]
[1728331324348,15.3739,147.19,147.16,19.38661256]
[1728331324543,6.7945,147.18,147.15,16.989]
[1728331325056,6.7945,147.18,147.14,26.18281256]
[1728331328374,15.3739,147.19,147.15,1.35890842]
[1728331328682,22.1679,147.19,147.15,8.15460842]
[1728331329678,22.1679,147.19,147.15,6.7957]
[1728331331550,6.7944,147.18,147.14,43.17291256]
[1728331332076,6.7948,147.17,147.14,16.9904]
[1728331332253,6.7965,147.14,147.1,23.7922]
[1728331334163,6.7965,147.14,147.11,1.3593466]
[1728331334687,6.7965,147.14,147.1,23.7922]
[1728331334860,6.795,147.17,147.13,6.7964]
[1728331335061,30.571384,147.18,147.14,8.15490263]
[1728331336754,6.7949,147.17,147.13,26.18311256]
[1728331343662,6.7949,147.17,147.14,1.35905264]
[1728331343976,30.571384,147.18,147.14,8.15515264]
[1728331346087,6.7945,147.18,147.14,1.35905264]
[1728331346386,22.1678,147.19,147.15,26.18231256]
[1728331346558,22.1678,147.19,147.16,1.35890676]
[1728331348677,22.1678,147.19,147.15,26.18231256]
[1728331349392,22.1678,147.19,147.16,1.35886216]
[1728331350067,6.7939,147.19,147.16,1.35886216]
[1728331350808,6.7939,147.19,147.16,8.15416216]
[1728331350966,16.0421,147.22,147.17,19.38661256]
[1728331351167,22.8347,147.22,147.18,1.35860704]
[1728331351367,22.8347,147.22,147.19,6.7939]
[1728331351567,22.8347,147.22,147.18,25.13860704]
[1728331353197,23.776884,147.21,147.15,16.9887]
[1728331353494,6.7944,147.18,147.15,16.9887]
[1728331354088,6.7951,147.17,147.13,6.7965]
[1728331355097,40.759684,147.21,147.12,23.7888]
[1728331355098,6.7953,147.16,147.12,23.7888]
[1728331355604,6.7965,147.14,147.1,6.7978]
[1728331356231,6.7967,147.13,147.09,23.794]
[1728331364118,6.7963,147.14,147.1,8.15730259]
[1728331364411,30.572784,147.15,147.11,6.7976]
[1728331366011,30.572784,147.15,147.12,1.35933791]
[1728331366192,30.572784,147.15,147.11,8.15689879]
[1728331367505,6.7963,147.14,147.1,26.18451256]
[1728331367690,6.7963,147.14,147.1,6.7979]
[1728331368014,6.7967,147.13,147.1,6.7979]
[1728331369316,23.776884,147.15,147.09,23.794]
[1728331370011,6.59668468,147.14,147.09,23.794]
[1728331370188,6.59668468,147.13,147.09,23.794]
[1728331370389,6.59674884,147.12,147.09,23.794]
[1728331370696,23.776884,147.15,147.09,23.794]
[1728331371014,6.59677805,147.14,147.12,19.38661256]
[1728331371191,6.6399,147.18,147.13,20.74569277]
[1728331371393,15.8541,147.2,147.13,20.74569277]
[1728331371394,6.59596311,147.17,147.16,6.7953]
[1728331372204,6.59596311,147.17,147.15,27.54109919]
[1728331372404,6.59596311,147.16,147.15,27.54109919]
[1728331373215,6.59596311,147.16,147.15,6.7956]
[1728331373891,6.59505523,147.16,147.15,6.7956]
[1728331374486,6.59505523,147.16,147.14,25.14526782]
[1728331374716,6.59505523,147.15,147.14,25.14526782]
[1728331375119,6.59505523,147.15,147.14,23.7863]
[1728331377318,6.7944,147.18,147.14,23.7863]
[1728331377522,6.5952314,147.17,147.14,23.7863]
[1728331377706,6.5952314,147.16,147.14,23.7863]
[1728331377899,6.5952314,147.15,147.14,23.7863]
[1728331380799,15.8541,147.2,147.17,6.7948]
[1728331381001,15.8541,147.2,147.17,8.15357176]
[1728331381603,6.59513059,147.19,147.17,8.15357176]
[1728331381802,6.59513059,147.18,147.17,8.15357176]
[1728331383301,6.7924,147.23,147.19,6.7939]
[1728331383502,6.7924,147.23,147.19,8.15248933]
[1728331383705,13.38633516,147.22,147.19,1.35858933]
[1728331383925,6.59373516,147.21,147.19,1.35858933]
[1728331384102,6.59373516,147.2,147.19,1.35858933]
[1728331385121,6.59373516,147.2,147.18,43.16661256]
[1728331385424,6.59373516,147.19,147.18,43.16661256]
[1728331385820,6.59373516,147.19,147.15,18.34725604]
[1728331386117,6.59373516,147.18,147.15,23.7843]
[1728331386326,6.59373516,147.17,147.15,23.7843]
[1728331386520,6.794,147.19,147.15,23.7843]
[1728331387001,6.48638252,147.18,147.15,23.7843]
[1728331387202,6.48638252,147.17,147.15,16.9886]
[1728331387411,6.55165273,147.16,147.15,16.9886]
[1728331388712,6.55165273,147.16,147.15,25.14325531]
[1728331391613,6.55165273,147.16,147.15,44.52986787]
[1728331391808,6.55165273,147.16,147.15,43.17091256]
[1728331392021,6.7926,147.22,147.15,19.38661256]
[1728331392204,6.55106717,147.21,147.18,6.7943]
[1728331392525,6.55106717,147.2,147.19,1.3586079]
[1728331394209,6.55106717,147.2,147.18,6.7943]
[1728331394408,6.55106717,147.19,147.18,6.7943]
[1728331395233,6.55106717,147.19,147.17,43.16821256]
[1728331395441,6.55106717,147.18,147.17,43.16821256]
[1728331396215,6.55106717,147.18,147.15,6.7956]
[1728331396427,6.55106717,147.17,147.15,6.7956]
[1728331396629,21.6972,147.18,147.07,315.7574]
[1728331396831,6.54969408,147.17,147.07,300.0]
[1728331397135,6.7967,147.13,147.08,6.7986]
[1728331397338,6.54969408,147.12,147.08,30.0]
[1728331397507,6.7972,147.12,147.08,30.0]
[1728331397921,6.7968,147.13,147.07,316.9978]
[1728331398124,6.5513703,147.12,147.09,6.7985]
[1728331398366,6.7968,147.13,147.09,6.7985]
[1728331398636,6.55169411,147.12,147.09,6.7985]
[1728331398836,6.55169411,147.12,147.1,8.15741266]
[1728331399048,6.7958,147.15,147.1,8.15741266]
[1728331399337,6.59254038,147.14,147.1,8.15741266]
[1728331399537,6.59254038,147.13,147.09,16.9956]
[1728331399841,6.59254038,147.12,147.09,16.9956]
[1728331400142,6.7968,147.13,147.09,16.9956]
[1728331400841,6.59228336,147.12,147.1,1.35946393]
[1728331401042,6.7968,147.13,147.1,1.35946393]
[1728331401236,6.59228279,147.12,147.1,1.35946393]
[1728331401413,6.7963,147.14,147.1,1.35946393]
[1728331401612,23.776884,147.17,147.1,1.35946393]
[1728331401613,6.59188875,147.13,147.1,20.74607649]
[1728331401928,23.776884,147.17,147.11,6.7972]
[1728331401929,6.59188875,147.12,147.11,6.7972]
[1728331402441,15.8514,147.22,147.17,6.7948]
[1728331402620,6.5846,147.23,147.21,19.38661256]